Workbook

Sheet I. Calculadora - Oferta
B2: Serie I (UI) - Calculadora Yield / Precio - ISIN UYFFCN179UI0 | L2: Serie II (UP) - Calculadora Yield / Precio - ISIN UYFFCN180UP3 | V2: Serie III (USD) - Calculadora Yield / Precio - ISIN UYFFCN181US5
B4: I. Datos del Instrumento | E4: II. Datos integración/adjudicación | L4: I. Datos del Instrumento | O4: II. Datos integración/adjudicación | V4: I. Datos del Instrumento | Y4: II. Datos integración/adjudicación
B5: Fecha Emitido | C5: 2023-12-14 | E5: Fecha Cierre | F5: 2024-04-25 | L5: Fecha Emitido | M5: =+C5 -> 2023-12-14 | O5: Fecha Cierre | P5: =+F5 -> 2024-04-25 | V5: Fecha Emitido | W5: =+C5 -> 2023-12-14 | Y5: Fecha Cierre | Z5: =+F5 -> 2024-04-25
B6: Cupon (UI) | C6: 0.038 | L6: Cupon (UP) | M6: 0.0225 | V6: Cupon (USD) | W6: 0.057
B7: Dias Devengados | C7: =DAYS360(C5,B20,0) -> 131 | E7: Precio ====> | F7: 100 | L7: Dias Devengados | M7: =DAYS360(M5,L20) -> 131 | O7: Precio ====> | P7: 100 | V7: Dias Devengados | W7: =DAYS360(W5,V20) -> 131 | Y7: Precio ====> | Z7: 100
B8: Cupon Devengado | C8: =C6*C7/360 -> 0.01382777778 | E8: TIR | F8: =+XIRR(F20:F71,B20:B71) -> 0.03726361096 | L8: Cupon Devengado | M8: =M6*M7/360 -> 0.0081875 | O8: TIR | P8: =+XIRR(P20:P71,L20:L71) -> 0.02205844223 | V8: Cupon Devengado | W8: =W6*W7/360 -> 0.02074166667 | Y8: TIR | Z8: =+XIRR(Z20:Z71,V20:V71) -> 0.05589384735
E9: YIELD | F9: =+(((1+F8)^(0.5))-1)*2 -> 0.03692278789 | O9: YIELD | P9: =+(((1+P8)^(0.5))-1)*2 -> 0.02193812194 | Y9: YIELD | Z9: =+(((1+Z8)^(0.5))-1)*2 -> 0.05513391033
E10: DURATION | F10: =+H20/G20 -> 13.29358473 | O10: DURATION | P10: =+R20/Q20 -> 15.06896675 | Y10: DURATION | Z10: =+AB20/AA20 -> 11.54479288
B12: III. Monto a ser Integrado | L12: III. Monto a ser Integrado | V12: III. Monto a ser Integrado
B13: Valor Nominal Monto adjudicado | C13: 40000000 | D13: UI | L13: Valor Nominal Monto adjudicado | M13: 15000000 | N13: UP | V13: Valor Nominal Monto adjudicado | W13: 1000000 | X13: USD
B14: Nominal * Precio | C14: =C13*F7/100 -> 40000000 | L14: Nominal * Precio | M14: =M13*P7/100 -> 15000000 | V14: Nominal * Precio | W14: =W13*Z7/100 -> 1000000
B15: Cupon Devengado | C15: =C13*C8 -> 553111.1111 | L15: Cupon Devengado | M15: =M13*M8 -> 122812.5 | V15: Cupon Devengado | W15: =W13*W8 -> 20741.66667
B16: Total UI a Fondear | C16: =C15+C14 -> 40553111.11 | L16: Total UP a Fondear | M16: =M15+M14 -> 15122812.5 | V16: Total USD a Fondear | W16: =W15+W14 -> 1020741.667
B19: Fecha | C19: Variación capital | D19: Saldo | E19: Intereses | F19: FF | G19: Cálculo Duration | L19: Fecha | M19: Variación capital | N19: Saldo | O19: Intereses | P19: FF | Q19: Cálculo Duration | V19: Fecha | W19: Variación capital | X19: Saldo | Y19: Intereses | Z19: FF | AA19: Cálculo Duration
B20: =+F5 -> 2024-04-25 | C20: 0 | D20: 1 | F20: =-F7%-C8 -> -1.013827778 | G20: =+SUM(G21:G71)*100 -> 101.4168384 | H20: =+SUM(H21:H71)*100 -> 1348.193334 | L20: =+P5 -> 2024-04-25 | M20: 0 | N20: 1 | P20: =-P7%-M8 -> -1.0081875 | Q20: =+SUM(Q21:Q71)*100 -> 100.8416226 | R20: =+SUM(R21:R71)*100 -> 1519.579058 | V20: =+Z5 -> 2024-04-25 | W20: 0 | X20: 1 | Z20: =-Z7%-W8 -> -1.020741667 | AA20: =+SUM(AA21:AA71)*100 -> 102.1185151 | AB20: =+SUM(AB21:AB71)*100 -> 1178.937106
B21: 2024-06-20 | C21: 0 | D21: =+D20-C21 -> 1 | E21: =+D20*((1+($C$6*(DAYS360(B20,B21)/360))-1)) -> 0.005805555556 | F21: =(C21+E21) -> 0.005805555556 | G21: =+(F21/((1+$F$8)^((DAYS360($B$20,B21))/360))) -> 0.005773195674 | H21: =+G21*DAYS360($B$20,B21)/360 -> 0.0008820160057 | L21: 2024-06-20 | M21: 0 | N21: =+N20-M21 -> 1 | O21: =+N20*((1+($M$6*(DAYS360(L20,L21)/360))-1)) -> 0.0034375 | P21: =(M21+O21) -> 0.0034375 | Q21: =+(P21/((1+$P$8)^((DAYS360($L$20,L21))/360))) -> 0.003426060485 | R21: =+Q21*DAYS360($L$20,L21)/360 -> 0.0005234259074 | V21: 2024-06-20 | W21: 0 | X21: =+X20-W21 -> 1 | Y21: =+X20*((1+($W$6*(DAYS360(V20,V21)/360))-1)) -> 0.008708333333 | Z21: =(W21+Y21) -> 0.008708333333 | AA21: =+(Z21/((1+$Z$8)^((DAYS360($V$20,V21))/360))) -> 0.008636273624 | AB21: =+AA21*DAYS360($V$20,V21)/360 -> 0.001319430693
B22: 2024-12-20 | C22: 0 | D22: =+D21-C22 -> 1 | E22: 0.019 | F22: 0.019 | G22: =+(F22/((1+$F$8)^((DAYS360($B$20,B22))/360))) -> 0.01855160642 | H22: =+G22*DAYS360($B$20,B22)/360 -> 0.01211007641 | L22: 2024-12-20 | M22: 0 | N22: 1 | O22: 0.01125 | P22: 0.01125 | Q22: 0.01109090478 | R22: 0.007239896173 | V22: 2024-12-20 | W22: 0 | X22: 1 | Y22: 0.0285 | Z22: 0.0285 | AA22: =+(Z22/((1+$Z$8)^((DAYS360($V$20,V22))/360))) -> 0.02750591393 | AB22: =+AA22*DAYS360($V$20,V22)/360 -> 0.01795524937
B23: 2025-06-20 | C23: 0 | D23: 1 | E23: 0.019 | F23: 0.019 | G23: 0.01821532611 | H23: 0.02099822315 | L23: 2025-06-20 | M23: 0 | N23: 1 | O23: 0.01125 | P23: 0.01125 | Q23: 0.01097056795 | R23: 0.01264662694 | V23: 2025-06-20 | W23: 0 | X23: 1 | Y23: 0.0285 | Z23: 0.0285 | AA23: 0.02676800163 | AB23: =+AA23*DAYS360($V$20,V23)/360 -> 0.03085755743
B24: 2025-12-20 | C24: 0 | D24: 1 | E24: 0.019 | F24: 0.019 | G24: 0.01788514146 | H24: 0.02956016436 | L24: 2025-12-20 | M24: 0 | N24: 1 | O24: 0.01125 | P24: 0.01125 | Q24: 0.01085153678 | R24: 0.01793517884 | V24: 2025-12-20 | W24: 0 | X24: 1 | Y24: 0.0285 | Z24: 0.0285 | AA24: 0.0260498856 | AB24: 0.04305467203
B25: 2026-06-20 | C25: 0 | D25: 1 | E25: 0.019 | F25: 0.019 | G25: 0.017560942 | H25: 0.03780480568 | L25: 2026-06-20 | M25: 0 | N25: 1 | O25: 0.01125 | P25: 0.01125 | Q25: 0.0107337971 | R25: 0.02310747988 | V25: 2026-06-20 | W25: 0 | X25: 1 | Y25: 0.0285 | Z25: 0.0285 | AA25: 0.02535103476 | AB25: 0.05457514428
B26: 2026-12-20 | C26: 0 | D26: 1 | E26: 0.019 | F26: 0.019 | G26: 0.01724261921 | H26: 0.04574083707 | L26: 2026-12-20 | M26: 0 | N26: 1 | O26: 0.01125 | P26: 0.01125 | Q26: =+(P26/((1+$P$8)^((DAYS360($L$20,L26))/360))) -> 0.01061733491 | R26: 0.02816543011 | V26: 2026-12-20 | W26: 0 | X26: 1 | Y26: 0.0285 | Z26: 0.0285 | AA26: 0.02467093228 | AB26: 0.0654465009
B27: 2027-06-20 | C27: 0 | D27: 1 | E27: 0.019 | F27: 0.019 | G27: 0.01693006658 | H27: 0.05337673769 | L27: 2027-06-20 | M27: 0 | N27: 1 | O27: 0.01125 | P27: 0.01125 | Q27: 0.01050213634 | R27: =+Q27*DAYS360($L$20,L27)/360 -> 0.03311090206 | V27: 2027-06-20 | W27: 0 | X27: 1 | Y27: 0.0285 | Z27: 0.0285 | AA27: 0.02400907518 | AB27: 0.07569527868
B28: 2027-12-20 | C28: 0 | D28: 1 | E28: 0.019 | F28: =(C28+E28) -> 0.019 | G28: 0.01662317952 | H28: 0.06072078073 | L28: 2027-12-20 | M28: 0 | N28: 1 | O28: 0.01125 | P28: 0.01125 | Q28: 0.01038818767 | R28: 0.03794574108 | V28: 2027-12-20 | W28: 0 | X28: 1 | Y28: 0.0285 | Z28: 0.0285 | AA28: 0.02336497399 | AB28: 0.08534705776
B29: 2028-06-20 | C29: 0 | D29: 1 | E29: 0.019 | F29: 0.019 | G29: 0.01632185531 | H29: 0.06778103804 | L29: 2028-06-20 | M29: 0 | N29: 1 | O29: 0.01125 | P29: 0.01125 | Q29: 0.01027547536 | R29: 0.04267176572 | V29: 2028-06-20 | W29: 0 | X29: 1 | Y29: 0.0285 | Z29: 0.0285 | AA29: 0.02273815236 | AB29: 0.09442649383
B30: 2028-12-20 | C30: 0 | D30: 1 | E30: 0.019 | F30: 0.019 | G30: 0.01602599314 | H30: 0.07456538476 | L30: 2028-12-20 | M30: 0 | N30: 1 | O30: 0.01125 | P30: 0.01125 | Q30: 0.01016398598 | R30: 0.04729076808 | V30: 2028-12-20 | W30: 0 | X30: 1 | Y30: 0.0285 | Z30: 0.0285 | AA30: 0.02212814673 | AB30: 0.1029573494
B31: 2029-06-20 | C31: 0 | D31: 1 | E31: 0.019 | F31: 0.019 | G31: 0.01573549399 | H31: 0.08108150374 | L31: 2029-06-20 | M31: 0 | N31: 1 | O31: 0.01125 | P31: 0.01125 | Q31: 0.01005370626 | R31: 0.05180451419 | V31: 2029-06-20 | W31: 0 | X31: 1 | Y31: 0.0285 | Z31: 0.0285 | AA31: 0.02153450597 | AB31: 0.1109625238
B32: 2029-12-20 | C32: 0 | D32: 1 | E32: 0.019 | F32: 0.019 | G32: 0.01545026064 | H32: 0.08733689001 | L32: 2029-12-20 | M32: 0 | N32: 1 | O32: 0.01125 | P32: 0.01125 | Q32: 0.009944623081 | R32: 0.05621474436 | V32: 2029-12-20 | W32: 0 | X32: 1 | Y32: 0.0285 | Z32: 0.0285 | AA32: 0.02095679105 | AB32: 0.1184640828
B33: 2030-06-20 | C33: 0 | D33: 1 | E33: 0.019 | F33: 0.019 | G33: 0.01517019764 | H33: 0.09333885495 | L33: 2030-06-20 | M33: 0 | N33: 1 | O33: 0.01125 | P33: 0.01125 | Q33: 0.009836723462 | R33: 0.06052317352 | V33: 2030-06-20 | W33: 0 | X33: 1 | Y33: 0.0285 | Z33: 0.0285 | AA33: 0.02039457472 | AB33: 0.1254832862
B34: 2030-12-20 | C34: 0 | D34: 1 | E34: 0.019 | F34: 0.019 | G34: 0.01489521128 | H34: 0.09909453061 | L34: 2030-12-20 | M34: 0 | N34: 1 | O34: 0.01125 | P34: 0.01125 | Q34: 0.009729994558 | R34: 0.06473149158 | V34: 2030-12-20 | W34: 0 | X34: 1 | Y34: 0.0285 | Z34: 0.0285 | AA34: 0.0198474412 | AB34: 0.1320406158
B35: 2031-06-20 | C35: 0 | D35: 1 | E35: 0.019 | F35: 0.019 | G35: 0.01462520953 | H35: 0.1046108737 | L35: 2031-06-20 | M35: 0 | N35: 1 | O35: 0.01125 | P35: 0.01125 | Q35: 0.009624423668 | R35: 0.06884136374 | V35: 2031-06-20 | W35: 0 | X35: 1 | Y35: 0.0285 | Z35: 0.0285 | AA35: 0.01931498585 | AB35: 0.1381558016
B36: 2031-12-20 | C36: 0 | D36: 1 | E36: 0.019 | F36: 0.019 | G36: 0.01436010203 | H36: 0.1098946697 | L36: 2031-12-20 | M36: 0 | N36: 1 | O36: 0.01125 | P36: 0.01125 | Q36: 0.009519998227 | R36: 0.07285443088 | V36: 2031-12-20 | W36: 0 | X36: 1 | Y36: 0.0285 | Z36: 0.0285 | AA36: 0.0187968149 | AB36: 0.1438478474
B37: 2032-06-20 | C37: 0 | D37: 1 | E37: 0.019 | F37: 0.019 | G37: 0.01409980006 | H37: 0.1149525366 | L37: 2032-06-20 | M37: 0 | N37: 1 | O37: 0.01125 | P37: 0.01125 | Q37: 0.009416705807 | R37: 0.07677230985 | V37: 2032-06-20 | W37: 0 | X37: 1 | Y37: 0.0285 | Z37: 0.0285 | AA37: 0.01829254513 | AB37: 0.1491350554
B38: 2032-12-20 | C38: 0 | D38: 1 | E38: 0.019 | F38: 0.019 | G38: 0.01384421653 | H38: 0.1197909291 | L38: 2032-12-20 | M38: 0 | N38: 1 | O38: 0.01125 | P38: 0.01125 | Q38: 0.009314534115 | R38: 0.0805965938 | V38: 2032-12-20 | W38: 0 | X38: 1 | Y38: 0.0285 | Z38: 0.0285 | AA38: 0.01780180361 | AB38: 0.1540350507
B39: 2033-06-20 | C39: 0 | D39: 1 | E39: 0.019 | F39: 0.019 | G39: 0.01359326589 | H39: 0.124416142 | L39: 2033-06-20 | M39: 0 | N39: 1 | O39: 0.01125 | P39: 0.01125 | Q39: 0.00921347099 | R39: 0.08432885253 | V39: 2033-06-20 | W39: 0 | X39: 1 | Y39: 0.0285 | Z39: 0.0285 | AA39: 0.01732422741 | AB39: 0.1585648036
B40: 2033-12-20 | C40: 0 | D40: 1 | E40: 0.019 | F40: 0.019 | G40: 0.01334686417 | H40: 0.1288343139 | L40: 2033-12-20 | M40: 0 | N40: 1 | O40: 0.01125 | P40: 0.01125 | Q40: 0.009113504404 | R40: 0.08797063279 | V40: 2033-12-20 | W40: 0 | X40: 1 | Y40: 0.0285 | Z40: 0.0285 | AA40: 0.01685946334 | AB40: 0.162740653
B41: 2034-06-20 | C41: 0 | D41: 1 | E41: 0.019 | F41: 0.019 | G41: 0.01310492892 | H41: 0.1330514311 | L41: 2034-06-20 | M41: 0 | N41: 1 | O41: 0.01125 | P41: 0.01125 | Q41: 0.009014622461 | R41: 0.0915234586 | V41: 2034-06-20 | W41: 0 | X41: 1 | Y41: 0.0285 | Z41: 0.0285 | AA41: 0.01640716768 | AB41: 0.1665783274
B42: 2034-12-20 | C42: 0 | D42: 1 | E42: 0.019 | F42: 0.019 | G42: 0.01286737916 | H42: 0.1370733308 | L42: 2034-12-20 | M42: 0 | N42: 1 | O42: 0.01125 | P42: 0.01125 | Q42: 0.008916813391 | R42: 0.09498883154 | V42: 2034-12-20 | W42: 0 | X42: 1 | Y42: 0.0285 | Z42: 0.0285 | AA42: 0.01596700594 | AB42: 0.1700929661
B43: 2035-06-20 | C43: 0 | D43: 1 | E43: 0.019 | F43: 0.019 | G43: 0.01263413541 | H43: 0.1409057047 | L43: 2035-06-20 | M43: 0 | N43: 1 | O43: 0.01125 | P43: 0.01125 | Q43: 0.008820065554 | R43: 0.09836823111 | V43: 2035-06-20 | W43: 0 | X43: 1 | Y43: 0.0285 | Z43: 0.0285 | AA43: 0.0155386526 | AB43: 0.1732991395
B44: 2035-12-20 | C44: =+(3.57142857142857)% -> 0.03571428571 | D44: 0.9642857143 | E44: 0.019 | F44: 0.05471428571 | G44: 0.03572301362 | H44: 0.4162723392 | L44: 2035-12-20 | M44: =+(3.57142857142857)% -> 0.03571428571 | N44: 0.9642857143 | O44: 0.01125 | P44: 0.04696428571 | Q44: 0.03642077199 | R44: 0.4244031625 | V44: 2035-12-20 | W44: =+(3.57142857142857)% -> 0.03571428571 | X44: 0.9642857143 | Y44: 0.0285 | Z44: 0.06421428571 | AA44: 0.0340714035 | AB44: 0.3970264935
B45: 2036-06-20 | C45: =+(3.57142857142857)% -> 0.03571428571 | D45: 0.9285714286 | E45: 0.01832142857 | F45: 0.05403571429 | G45: 0.03464046241 | H45: 0.4209778418 | L45: 2036-06-20 | M45: 0.03571428571 | N45: 0.9285714286 | O45: 0.01084821429 | P45: 0.0465625 | Q45: 0.03571740109 | R45: 0.4340656383 | V45: 2036-06-20 | W45: 0.03571428571 | X45: 0.9285714286 | Y45: 0.02748214286 | Z45: 0.06319642857 | AA45: 0.0326317807 | AB45: 0.3965667794
B46: 2036-12-20 | C46: 0.03571428571 | D46: 0.8928571429 | E46: 0.01764285714 | F46: 0.05335714286 | G46: 0.03358541963 | H46: 0.4249488512 | L46: 2036-12-20 | M46: 0.03571428571 | N46: 0.8928571429 | O46: 0.01044642857 | P46: 0.04616071429 | Q46: 0.03502500582 | R46: 0.4431636154 | V46: 2036-12-20 | W46: 0.03571428571 | X46: 0.8928571429 | Y46: 0.02646428571 | Z46: 0.06217857143 | AA46: 0.03124487908 | AB46: 0.3953345116
B47: 2037-06-20 | C47: 0.03571428571 | D47: 0.8571428571 | E47: 0.01696428571 | F47: 0.05267857143 | G47: 0.03255724372 | H47: 0.4282181917 | L47: 2037-06-20 | M47: 0.03571428571 | N47: 0.8571428571 | O47: 0.01004464286 | P47: 0.04575892857 | Q47: 0.03434343082 | R47: 0.4517115137 | V47: 2037-06-20 | W47: 0.03571428571 | X47: 0.8571428571 | Y47: 0.02544642857 | Z47: 0.06116071429 | AA47: 0.02990890599 | AB47: 0.393385194
B48: 2037-12-20 | C48: 0.03571428571 | D48: 0.8214285714 | E48: 0.01628571429 | F48: 0.052 | G48: 0.03155530732 | H48: 0.4308175985 | L48: 2037-12-20 | M48: 0.03571428571 | N48: 0.8214285714 | O48: 0.009642857143 | P48: 0.04535714286 | Q48: 0.03367252279 | R48: 0.4597234708 | V48: 2037-12-20 | W48: 0.03571428571 | X48: 0.8214285714 | Y48: 0.02442857143 | Z48: 0.06014285714 | AA48: 0.02862212704 | AB48: 0.39077154
B49: 2038-06-20 | C49: 0.03571428571 | D49: 0.7857142857 | E49: 0.01560714286 | F49: 0.05132142857 | G49: 0.03057899698 | H49: 0.432777749 | L49: 2038-06-20 | M49: 0.03571428571 | N49: 0.7857142857 | O49: 0.009241071429 | P49: 0.04495535714 | Q49: 0.03301213049 | R49: 0.4672133469 | V49: 2038-06-20 | W49: 0.03571428571 | X49: 0.7857142857 | Y49: 0.02341071429 | Z49: 0.059125 | AA49: 0.02738286424 | AB49: 0.3875435925
B50: 2038-12-20 | C50: 0.03571428571 | D50: 0.75 | E50: 0.01492857143 | F50: 0.05064285714 | G50: 0.0296277129 | H50: 0.4341282933 | L50: 2038-12-20 | M50: 0.03571428571 | N50: 0.75 | O50: 0.008839285714 | P50: 0.04455357143 | Q50: 0.03236210473 | R50: 0.474194729 | V50: 2038-12-20 | W50: 0.03571428571 | X50: 0.75 | Y50: 0.02239285714 | Z50: 0.05810714286 | AA50: 0.02618949423 | AB50: 0.3837488391
B51: 2039-06-20 | C51: 0.03571428571 | D51: 0.7142857143 | E51: 0.01425 | F51: 0.04996428571 | G51: 0.02870086858 | H51: 0.4348978837 | L51: 2039-06-20 | M51: 0.03571428571 | N51: 0.7142857143 | O51: 0.0084375 | P51: 0.04415178571 | Q51: 0.03172229828 | R51: 0.4806809364 | V51: 2039-06-20 | W51: 0.03571428571 | X51: 0.7142857143 | Y51: 0.021375 | Z51: 0.05708928571 | AA51: 0.02504044655 | AB51: 0.3794323221
B52: 2039-12-20 | C52: 0.03571428571 | D52: 0.6785714286 | E52: 0.01357142857 | F52: 0.04928571429 | G52: 0.02779789057 | H52: 0.4351142037 | L52: 2039-12-20 | M52: 0.03571428571 | N52: 0.6785714286 | O52: 0.008035714286 | P52: 0.04375 | Q52: 0.0310925659 | R52: 0.4866850246 | V52: 2039-12-20 | W52: 0.03571428571 | X52: 0.6785714286 | Y52: 0.02035714286 | Z52: 0.05607142857 | AA52: 0.02393420198 | AB52: 0.3746367449
B53: 2040-06-20 | C53: 0.03571428571 | D53: 0.6428571429 | E53: =+D52*((1+($C$6*(DAYS360(B52,B53)/360))-1)) -> 0.01289285714 | F53: 0.04860714286 | G53: =+(F53/((1+$F$8)^((DAYS360($B$20,B53))/360))) -> 0.02691821816 | H53: =+G53*DAYS360($B$20,B53)/360 -> 0.434803996 | L53: 2040-06-20 | M53: 0.03571428571 | N53: =+N52-M53 -> 0.6428571429 | O53: =+N52*((1+($M$6*(DAYS360(L52,L53)/360))-1)) -> 0.007633928571 | P53: =(M53+O53) -> 0.04334821429 | Q53: =+(P53/((1+$P$8)^((DAYS360($L$20,L53))/360))) -> 0.03047276432 | R53: =+Q53*DAYS360($L$20,L53)/360 -> 0.4922197903 | V53: 2040-06-20 | W53: 0.03571428571 | X53: =+X52-W53 -> 0.6428571429 | Y53: =+X52*((1+($W$6*(DAYS360(V52,V53)/360))-1)) -> 0.01933928571 | Z53: =(W53+Y53) -> 0.05505357143 | AA53: =+(Z53/((1+$Z$8)^((DAYS360($V$20,V53))/360))) -> 0.02286929089 | AB53: =+AA53*DAYS360($V$20,V53)/360 -> 0.3694025738
B54: 2040-12-20 | C54: 0.03571428571 | D54: 0.6071428571 | E54: 0.01221428571 | F54: 0.04792857143 | G54: 0.02606130314 | H54: 0.4339930898 | L54: 2040-12-20 | M54: 0.03571428571 | N54: 0.6071428571 | O54: 0.007232142857 | P54: 0.04294642857 | Q54: 0.02986275216 | R54: 0.4972977756 | V54: 2040-12-20 | W54: 0.03571428571 | X54: 0.6071428571 | Y54: 0.01832142857 | Z54: 0.05403571429 | AA54: 0.02184429174 | AB54: 0.363768136
B55: 2041-06-20 | C55: 0.03571428571 | D55: 0.5714285714 | E55: 0.01153571429 | F55: 0.04725 | G55: 0.02522660954 | H55: 0.4327064275 | L55: 2041-06-20 | M55: 0.03571428571 | N55: 0.5714285714 | O55: 0.006830357143 | P55: 0.04254464286 | Q55: 0.02926238997 | R55: 0.5019312724 | V55: 2041-06-20 | W55: 0.03571428571 | X55: 0.5714285714 | Y55: 0.01730357143 | Z55: 0.05301785714 | AA55: 0.02085782946 | AB55: 0.3577697137
B56: 2041-12-20 | C56: 0.03571428571 | D56: 0.5357142857 | E56: 0.01085714286 | F56: 0.04657142857 | G56: 0.02441361329 | H56: 0.4309680902 | L56: 2041-12-20 | M56: 0.03571428571 | N56: 0.5357142857 | O56: 0.006428571429 | P56: 0.04214285714 | Q56: 0.02867154014 | R56: 0.5061323266 | V56: 2041-12-20 | W56: 0.03571428571 | X56: 0.5357142857 | Y56: 0.01628571429 | Z56: 0.052 | AA56: 0.01990857409 | AB56: 0.3514416343
B57: 2042-06-20 | C57: 0.03571428571 | D57: 0.5 | E57: 0.01017857143 | F57: 0.04589285714 | G57: 0.02362180207 | H57: 0.4288013238 | L57: 2042-06-20 | M57: 0.03571428571 | N57: 0.5 | O57: 0.006026785714 | P57: 0.04174107143 | Q57: 0.02809006693 | R57: 0.5099127428 | V57: 2042-06-20 | W57: 0.03571428571 | X57: 0.5 | Y57: 0.01526785714 | Z57: 0.05098214286 | AA57: 0.01899523925 | AB57: 0.344816357
B58: 2042-12-20 | C58: 0.03571428571 | D58: 0.4642857143 | E58: 0.0095 | F58: 0.04521428571 | G58: 0.02285067498 | H58: 0.4262285625 | L58: 2042-12-20 | M58: 0.03571428571 | N58: 0.4642857143 | O58: 0.005625 | P58: 0.04133928571 | Q58: 0.02751783644 | R58: 0.513284088 | V58: 2042-12-20 | W58: 0.03571428571 | X58: 0.4642857143 | Y58: 0.01425 | Z58: 0.04996428571 | AA58: 0.01811658083 | AB58: 0.3379245563
B59: 2043-06-20 | C59: 0.03571428571 | D59: 0.4285714286 | E59: 0.008821428571 | F59: 0.04453571429 | G59: 0.02209974231 | H59: 0.4232714534 | L59: 2043-06-20 | M59: 0.03571428571 | N59: 0.4285714286 | O59: 0.005223214286 | P59: 0.0409375 | Q59: 0.02695471653 | R59: 0.5162576958 | V59: 2043-06-20 | W59: 0.03571428571 | X59: 0.4285714286 | Y59: 0.01323214286 | Z59: 0.04894642857 | AA59: 0.0172713956 | AB59: 0.3307952018
B60: 2043-12-20 | C60: 0.03571428571 | D60: 0.3928571429 | E60: 0.008142857143 | F60: 0.04385714286 | G60: 0.02136852533 | H60: 0.4199508797 | L60: 2043-12-20 | M60: 0.03571428571 | N60: 0.3928571429 | O60: 0.004821428571 | P60: 0.04053571429 | Q60: 0.02640057689 | R60: 0.5188446708 | V60: 2043-12-20 | W60: 0.03571428571 | X60: 0.3928571429 | Y60: 0.01221428571 | Z60: 0.04792857143 | AA60: 0.01645851994 | AB60: 0.323455635
B61: 2044-06-20 | C61: 0.03571428571 | D61: 0.3571428571 | E61: 0.007464285714 | F61: 0.04317857143 | G61: 0.020656556 | H61: 0.4162869828 | L61: 2044-06-20 | M61: 0.03571428571 | N61: 0.3571428571 | O61: 0.004419642857 | P61: 0.04013392857 | Q61: 0.02585528892 | R61: 0.521055892 | V61: 2044-06-20 | W61: 0.03571428571 | X61: 0.3571428571 | Y61: 0.01119642857 | Z61: 0.04691071429 | AA61: 0.01567682859 | AB61: 0.3159316427
B62: 2044-12-20 | C62: 0.03571428571 | D62: 0.3214285714 | E62: 0.006785714286 | F62: 0.0425 | G62: 0.01996337681 | H62: 0.4122991849 | L62: 2044-12-20 | M62: 0.03571428571 | N62: 0.3214285714 | O62: 0.004017857143 | P62: 0.03973214286 | Q62: 0.02531872578 | R62: 0.5229020172 | V62: 2044-12-20 | W62: 0.03571428571 | X62: 0.3214285714 | Y62: 0.01017857143 | Z62: 0.04589285714 | AA62: 0.01492523337 | AB62: 0.3082475282
B63: 2045-06-20 | C63: 0.03571428571 | D63: 0.2857142857 | E63: 0.006107142857 | F63: 0.04182142857 | G63: 0.01928854047 | H63: 0.4080062103 | L63: 2045-06-20 | M63: 0.03571428571 | N63: 0.2857142857 | O63: 0.003616071429 | P63: 0.03933035714 | Q63: 0.02479076234 | R63: 0.5243934868 | V63: 2045-06-20 | W63: 0.03571428571 | X63: 0.2857142857 | Y63: 0.009160714286 | Z63: 0.044875 | AA63: 0.0142026821 | AB63: 0.3004261783
B64: 2045-12-20 | C64: 0.03571428571 | D64: 0.25 | E64: 0.005428571429 | F64: 0.04114285714 | G64: 0.01863160977 | H64: 0.4034261059 | L64: 2045-12-20 | M64: 0.03571428571 | N64: 0.25 | O64: 0.003214285714 | P64: 0.03892857143 | Q64: 0.02427127515 | R64: 0.5255405271 | V64: 2045-12-20 | W64: 0.03571428571 | X64: 0.25 | Y64: 0.008142857143 | Z64: 0.04385714286 | AA64: 0.01350815734 | AB64: 0.292489129
B65: 2046-06-20 | C65: 0.03571428571 | D65: 0.2142857143 | E65: 0.00475 | F65: 0.04046428571 | G65: 0.01799215729 | H65: 0.3985762622 | L65: 2046-06-20 | M65: 0.03571428571 | N65: 0.2142857143 | O65: 0.0028125 | P65: 0.03852678571 | Q65: 0.02376014242 | R65: 0.5263531549 | V65: 2046-06-20 | W65: 0.03571428571 | X65: 0.2142857143 | Y65: 0.007125 | Z65: 0.04283928571 | AA65: 0.01284067536 | AB65: 0.2844566278
B66: 2046-12-20 | C66: 0.03571428571 | D66: 0.1785714286 | E66: 0.004071428571 | F66: 0.03978571429 | G66: 0.01736976524 | H66: 0.3934734321 | L66: 2046-12-20 | M66: 0.03571428571 | N66: 0.1785714286 | O66: 0.002410714286 | P66: 0.038125 | Q66: 0.02325724401 | R66: 0.5268411803 | V66: 2046-12-20 | W66: 0.03571428571 | X66: 0.1785714286 | Y66: 0.006107142857 | Z66: 0.04182142857 | AA66: 0.01219928506 | AB66: 0.2763476934
B67: 2047-06-20 | C67: 0.03571428571 | D67: 0.1428571429 | E67: 0.003392857143 | F67: 0.03910714286 | G67: 0.01676402524 | H67: 0.3881337511 | L67: 2047-06-20 | M67: 0.03571428571 | N67: 0.1428571429 | O67: 0.002008928571 | P67: 0.03772321429 | Q67: 0.02276246142 | R67: 0.527014211 | V67: 2047-06-20 | W67: 0.03571428571 | X67: 0.1428571429 | Y67: 0.005089285714 | Z67: 0.04080357143 | AA67: 0.01158306687 | AB67: 0.2681801732
B68: 2047-12-20 | C68: 0.03571428571 | D68: 0.1071428571 | E68: 0.002714285714 | F68: 0.03842857143 | G68: 0.01617453809 | H68: 0.3825727551 | L68: 2047-12-20 | M68: 0.03571428571 | N68: 0.1071428571 | O68: 0.001607142857 | P68: 0.03732142857 | Q68: 0.02227567774 | R68: 0.5268816554 | V68: 2047-12-20 | W68: 0.03571428571 | X68: 0.1071428571 | Y68: 0.004071428571 | Z68: 0.03978571429 | AA68: 0.01099113181 | AB68: 0.2599707981
B69: 2048-06-20 | C69: 0.03571428571 | D69: 0.07142857143 | E69: 0.002035714286 | F69: 0.03775 | G69: 0.01560091361 | H69: 0.3768053994 | L69: 2048-06-20 | M69: 0.03571428571 | N69: 0.07142857143 | O69: 0.001205357143 | P69: 0.03691964286 | Q69: 0.02179677763 | R69: 0.5264527263 | V69: 2048-06-20 | W69: 0.03571428571 | X69: 0.07142857143 | Y69: 0.003053571429 | Z69: 0.03876785714 | AA69: =+(Z69/((1+$Z$8)^((DAYS360($V$20,V69))/360))) -> 0.01042262046 | AB69: 0.2517352359
B70: 2048-12-20 | C70: 0.03571428571 | D70: 0.03571428571 | E70: 0.001357142857 | F70: 0.03707142857 | G70: 0.0150427704 | H70: 0.3708460758 | L70: 2048-12-20 | M70: 0.03571428571 | N70: 0.03571428571 | O70: 0.0008035714286 | P70: 0.03651785714 | Q70: 0.02132564732 | R70: 0.5257364444 | V70: 2048-12-20 | W70: 0.03571428571 | X70: 0.03571428571 | Y70: 0.002035714286 | Z70: 0.03775 | AA70: 0.009876702062 | AB70: 0.2434881411
B71: 2049-06-20 | C71: 0.03571428571 | D71: 4.440892099e-16 | E71: 0.0006785714286 | F71: =(C71+E71) -> 0.03639285714 | G71: 0.01449973571 | H71: 0.36470863 | L71: 2049-06-20 | M71: 0.03571428571 | N71: 4.440892099e-16 | O71: 0.0004017857143 | P71: 0.03611607143 | Q71: 0.0208621746 | R71: 0.5247416416 | V71: 2049-06-20 | W71: 0.03571428571 | X71: 4.440892099e-16 | Y71: 0.001017857143 | Z71: 0.03673214286 | AA71: =+(Z71/((1+$Z$8)^((DAYS360($V$20,V71))/360))) -> 0.00935257355 | AB71: 0.2352432042

Sheet I. Calculadora Fondeo UI
B2: Serie I (UI) - Calculadora Fondeo
B4: I. Instrumentos Elegibles y Montos
I6: Valor | J6: Valor
B7: Codigo Título | C7: Instrumentos | D7: Moneda del Intrumento | E7: Nominal | F7: Precio | G7: Cupón | H7: Devengado cupón corrido | I7: (moneda base) | J7: (UI)
B8: =+IFERROR(VLOOKUP(C8,'Títulos Elegibles'!$A$3:$B$9,2,FALSE),"") -> T | C8: FF CORPORACION VIAL DEL URUGUAY I US SIII | D8: =IFERROR(+VLOOKUP(C8,'Títulos Elegibles'!$A$3:$I$9,6,FALSE),"") -> USD | E8: 2000000 | F8: =+IFERROR(VLOOKUP($C8,'Títulos Elegibles'!$A$3:$H$9,8,FALSE),"") -> 0.8948937688 | G8: =+IFERROR(VLOOKUP(C8,'Títulos Elegibles'!$A$3:$G$9,7,FALSE),"") -> 0.031 | H8: =+IFERROR(VLOOKUP(C8,'Títulos Elegibles'!$A$3:$I$9,9,FALSE),"") -> 0.0008611111111 | I8: =IFERROR(E8*F8+H8*E8,0) -> 1791509.76 | J8: =+IFERROR(ROUND(IF(D8="USD",I8*$C$18/$C$19,IF(D8="UP",I8*$C$20/$C$19,I8)),2),"") -> 11646560.42
B9: =+IFERROR(VLOOKUP(C9,'Títulos Elegibles'!$A$3:$B$9,2,FALSE),"") -> T | C9: FF CORPORACION VIAL DEL URUGUAY I UI SI | D9: =IFERROR(+VLOOKUP(C9,'Títulos Elegibles'!$A$3:$I$9,6,FALSE),"") -> UI | E9: 30000000 | F9: =+IFERROR(VLOOKUP($C9,'Títulos Elegibles'!$A$3:$H$9,8,FALSE),"") -> 0.987952405 | G9: =+IFERROR(VLOOKUP(C9,'Títulos Elegibles'!$A$3:$G$9,7,FALSE),"") -> 0.0275 | H9: =+IFERROR(VLOOKUP(C9,'Títulos Elegibles'!$A$3:$I$9,9,FALSE),"") -> 0.0007638888889 | I9: =IFERROR(E9*F9+H9*E9,0) -> 29661488.82 | J9: =+IFERROR(ROUND(IF(D9="USD",I9*$C$18/$C$19,IF(D9="UP",I9*$C$20/$C$19,I9)),2),"") -> 29661488.82
B10: =+IFERROR(VLOOKUP(C10,'Títulos Elegibles'!$A$3:$B$9,2,FALSE),"") -> T | C10: FF CORPORACION VIAL DEL URUGUAY I US SIII | D10: =IFERROR(+VLOOKUP(C10,'Títulos Elegibles'!$A$3:$I$9,6,FALSE),"") -> USD | E10: 1000000 | F10: =+IFERROR(VLOOKUP($C10,'Títulos Elegibles'!$A$3:$H$9,8,FALSE),"") -> 0.8948937688 | G10: =+IFERROR(VLOOKUP(C10,'Títulos Elegibles'!$A$3:$G$9,7,FALSE),"") -> 0.031 | H10: =+IFERROR(VLOOKUP(C10,'Títulos Elegibles'!$A$3:$I$9,9,FALSE),"") -> 0.0008611111111 | I10: 895754.8799 | J10: =+IFERROR(ROUND(IF(D10="USD",I10*$C$18/$C$19,IF(D10="UP",I10*$C$20/$C$19,I10)),2),"") -> 5823280.21
B11: =+IFERROR(VLOOKUP(C11,'Títulos Elegibles'!$A$3:$B$9,2,FALSE),"") ->  | D11: =IFERROR(+VLOOKUP(C11,'Títulos Elegibles'!$A$3:$I$9,6,FALSE),"") ->  | F11: =+IFERROR(VLOOKUP($C11,'Títulos Elegibles'!$A$3:$H$9,8,FALSE),"") ->  | G11: =+IFERROR(VLOOKUP(C11,'Títulos Elegibles'!$A$3:$G$9,7,FALSE),"") ->  | H11: =+IFERROR(VLOOKUP(C11,'Títulos Elegibles'!$A$3:$I$9,9,FALSE),"") ->  | I11: 0 | J11: 0
B12: =+IFERROR(VLOOKUP(C12,'Títulos Elegibles'!$A$3:$B$9,2,FALSE),"") ->  | D12: =IFERROR(+VLOOKUP(C12,'Títulos Elegibles'!$A$3:$I$9,6,FALSE),"") ->  | F12: =+IFERROR(VLOOKUP($C12,'Títulos Elegibles'!$A$3:$H$9,8,FALSE),"") ->  | G12: =+IFERROR(VLOOKUP(C12,'Títulos Elegibles'!$A$3:$G$9,7,FALSE),"") ->  | H12: =+IFERROR(VLOOKUP(C12,'Títulos Elegibles'!$A$3:$I$9,9,FALSE),"") ->  | I12: 0 | J12: 0
B13: =+IFERROR(VLOOKUP(C13,'Títulos Elegibles'!$A$3:$B$9,2,FALSE),"") ->  | D13: =IFERROR(+VLOOKUP(C13,'Títulos Elegibles'!$A$3:$I$9,6,FALSE),"") ->  | F13: =+IFERROR(VLOOKUP($C13,'Títulos Elegibles'!$A$3:$H$9,8,FALSE),"") ->  | G13: =+IFERROR(VLOOKUP(C13,'Títulos Elegibles'!$A$3:$G$9,7,FALSE),"") ->  | H13: =+IFERROR(VLOOKUP(C13,'Títulos Elegibles'!$A$3:$I$9,9,FALSE),"") ->  | I13: 0 | J13: 0
B14: =+IFERROR(VLOOKUP(C14,'Títulos Elegibles'!$A$3:$B$9,2,FALSE),"") ->  | D14: =IFERROR(+VLOOKUP(C14,'Títulos Elegibles'!$A$3:$I$9,6,FALSE),"") ->  | F14: =+IFERROR(VLOOKUP($C14,'Títulos Elegibles'!$A$3:$H$9,8,FALSE),"") ->  | G14: =+IFERROR(VLOOKUP(C14,'Títulos Elegibles'!$A$3:$G$9,7,FALSE),"") ->  | H14: =+IFERROR(VLOOKUP(C14,'Títulos Elegibles'!$A$3:$I$9,9,FALSE),"") ->  | I14: 0 | J14: 0
C15: Total | J15: =SUM(J8:J14) -> 47131329.45 | K15: =+IF(J15>'I. Calculadora - Oferta'!C16,"SobreOfertado el monto",IF(J15<'I. Calculadora - Oferta'!C16,"Diferecia debe cubrirse con Efectivo","Caje total en Títulos")) -> SobreOfertado el monto
B17: Cotizaciones
B18: UYP/USD | C18: 39 | D18: valor de cierre del 15/4/2024
B19: UI | C19: 5.9991 | D19: Valor del 25/4/24
B20: UP | C20: 1.60197 | D20: Valor del 25/4/24
B24: II. Efectivo y Total Oferta | K24: Monto a transferir en Pesos
B26: Monto en efectivo (UI) | C26: =IF(J30-J15<0,0,J30-J15) -> 0 | J26: =C26 -> 0 | K26: =+J26*C19 -> 0
B27: Total Oferta | J27: =J26+J15 -> 47131329.45
H28: % Efectivo | J28: =J26/J27 -> 0 | K28: =+IF(J28<10%,"Cumple","No cumple") -> Cumple
H29: % Efectivo (ROUND) | J29: =ROUND(J28*100,0) -> 0
H30: Monto a fondear ==========> | J30: ='I. Calculadora - Oferta'!C16 -> 40553111.11
I31: Check | J31: =J30-J27 -> -6578218.339
C33: Ingreso de oferta texto adicional: | D33: =+CONCATENATE("T",ROUND(J15/J27,2)*100,",","E",J29) -> T100,E0

Sheet II. Calculadora Fondeo UP
B2: Serie II (UP) - Calculadora Fondeo
B4: I. Instrumentos Elegibles y Montos
I6: Valor | J6: Valor
B7: Codigo Título | C7: Instrumentos | D7: Moneda del Intrumento | E7: Nominal | F7: Precio | G7: Cupón | H7: Devengado cupón corrido | I7: (moneda base) | J7: (UP)
B8: =+IFERROR(VLOOKUP(C8,'Títulos Elegibles'!$A$3:$B$9,2,FALSE),"") -> T | C8: FF CORPORACION VIAL DEL URUGUAY I US S6 | D8: =IFERROR(+VLOOKUP(C8,'Títulos Elegibles'!$A$3:$I$9,6,FALSE),"") -> USD | E8: 400000 | F8: =+IFERROR(VLOOKUP($C8,'Títulos Elegibles'!$A$3:$H$9,8,FALSE),"") -> 0.9360274933 | G8: =+IFERROR(VLOOKUP(C8,'Títulos Elegibles'!$A$3:$G$9,7,FALSE),"") -> 0.045 | H8: =+IFERROR(VLOOKUP(C8,'Títulos Elegibles'!$A$3:$I$9,9,FALSE),"") -> 0.00125 | I8: =IFERROR(E8*F8+H8*E8,0) -> 374910.9973 | J8: =+IFERROR(ROUND(IF(D8="USD",I8*$C$18/$C$20,IF(D8="UI",I8*$C$19/$C$20,I8)),2),"") -> 9127217.67
B9: =+IFERROR(VLOOKUP(C9,'Títulos Elegibles'!$A$3:$B$9,2,FALSE),"") -> T | C9: FF CORPORACION VIAL DEL URUGUAY I USD | D9: =IFERROR(+VLOOKUP(C9,'Títulos Elegibles'!$A$3:$I$9,6,FALSE),"") -> USD | E9: 1500000 | F9: =+IFERROR(VLOOKUP($C9,'Títulos Elegibles'!$A$3:$H$9,8,FALSE),"") -> 0.9593600922 | G9: =+IFERROR(VLOOKUP(C9,'Títulos Elegibles'!$A$3:$G$9,7,FALSE),"") -> 0.049 | H9: =+IFERROR(VLOOKUP(C9,'Títulos Elegibles'!$A$3:$I$9,9,FALSE),"") -> 0.001361111111 | I9: =IFERROR(E9*F9+H9*E9,0) -> 1441081.805 | J9: =+IFERROR(ROUND(IF(D9="USD",I9*$C$18/$C$20,IF(D9="UI",I9*$C$19/$C$20,I9)),2),"") -> 35083172.84
B10: =+IFERROR(VLOOKUP(C10,'Títulos Elegibles'!$A$3:$B$9,2,FALSE),"") ->  | D10: =IFERROR(+VLOOKUP(C10,'Títulos Elegibles'!$A$3:$I$9,6,FALSE),"") ->  | F10: =+IFERROR(VLOOKUP($C10,'Títulos Elegibles'!$A$3:$H$9,8,FALSE),"") ->  | G10: =+IFERROR(VLOOKUP(C10,'Títulos Elegibles'!$A$3:$G$9,7,FALSE),"") ->  | H10: =+IFERROR(VLOOKUP(C10,'Títulos Elegibles'!$A$3:$I$9,9,FALSE),"") ->  | I10: 0 | J10: 0
B11: =+IFERROR(VLOOKUP(C11,'Títulos Elegibles'!$A$3:$B$9,2,FALSE),"") ->  | D11: =IFERROR(+VLOOKUP(C11,'Títulos Elegibles'!$A$3:$I$9,6,FALSE),"") ->  | F11: =+IFERROR(VLOOKUP($C11,'Títulos Elegibles'!$A$3:$H$9,8,FALSE),"") ->  | G11: =+IFERROR(VLOOKUP(C11,'Títulos Elegibles'!$A$3:$G$9,7,FALSE),"") ->  | H11: =+IFERROR(VLOOKUP(C11,'Títulos Elegibles'!$A$3:$I$9,9,FALSE),"") ->  | I11: 0 | J11: 0
B12: =+IFERROR(VLOOKUP(C12,'Títulos Elegibles'!$A$3:$B$9,2,FALSE),"") ->  | D12: =IFERROR(+VLOOKUP(C12,'Títulos Elegibles'!$A$3:$I$9,6,FALSE),"") ->  | F12: =+IFERROR(VLOOKUP($C12,'Títulos Elegibles'!$A$3:$H$9,8,FALSE),"") ->  | G12: =+IFERROR(VLOOKUP(C12,'Títulos Elegibles'!$A$3:$G$9,7,FALSE),"") ->  | H12: =+IFERROR(VLOOKUP(C12,'Títulos Elegibles'!$A$3:$I$9,9,FALSE),"") ->  | I12: 0 | J12: 0
B13: =+IFERROR(VLOOKUP(C13,'Títulos Elegibles'!$A$3:$B$9,2,FALSE),"") ->  | D13: =IFERROR(+VLOOKUP(C13,'Títulos Elegibles'!$A$3:$I$9,6,FALSE),"") ->  | F13: =+IFERROR(VLOOKUP($C13,'Títulos Elegibles'!$A$3:$H$9,8,FALSE),"") ->  | G13: =+IFERROR(VLOOKUP(C13,'Títulos Elegibles'!$A$3:$G$9,7,FALSE),"") ->  | H13: =+IFERROR(VLOOKUP(C13,'Títulos Elegibles'!$A$3:$I$9,9,FALSE),"") ->  | I13: 0 | J13: 0
B14: =+IFERROR(VLOOKUP(C14,'Títulos Elegibles'!$A$3:$B$9,2,FALSE),"") ->  | D14: =IFERROR(+VLOOKUP(C14,'Títulos Elegibles'!$A$3:$I$9,6,FALSE),"") ->  | F14: =+IFERROR(VLOOKUP($C14,'Títulos Elegibles'!$A$3:$H$9,8,FALSE),"") ->  | G14: =+IFERROR(VLOOKUP(C14,'Títulos Elegibles'!$A$3:$G$9,7,FALSE),"") ->  | H14: =+IFERROR(VLOOKUP(C14,'Títulos Elegibles'!$A$3:$I$9,9,FALSE),"") ->  | I14: 0 | J14: 0
C15: Total | J15: =SUM(J8:J14) -> 44210390.51 | K15: =+IF(I14>'I. Calculadora - Oferta'!M16,"SobreOfertado el monto",IF(I14<'I. Calculadora - Oferta'!M16,"Diferecia debe cubrirse con Efectivo","Caje total en Títulos")) -> Diferecia debe cubrirse con Efectivo
B17: Cotizaciones
B18: UYP/USD | C18: =+'I. Calculadora Fondeo UI'!C18 -> 39 | D18: valor de cierre del 15/4/2024
B19: UI | C19: =+'I. Calculadora Fondeo UI'!C19 -> 5.9991 | D19: Valor del 25/4/24
B20: UP | C20: =+'I. Calculadora Fondeo UI'!C20 -> 1.60197 | D20: Valor del 25/4/24
B24: II. Efectivo y Total Oferta | K24: Monto a transferir en Pesos
C26: Monto en efectivo (UP) | D26: =IF(J30-J15<0,0,J30-J15) -> 0 | J26: =D26 -> 0 | K26: =+J26*C20 -> 0
H27: Total Oferta | J27: =J26+J15 -> 44210390.51
H28: % Efectivo | J28: =J26/J27 -> 0 | K28: =+IF(J28<10%,"Cumple","No cumple") -> Cumple
H29: % Efectivo (ROUND) | J29: =ROUND(J28*100,0) -> 0
H30: Monto a fondear ==========> | J30: =+'I. Calculadora - Oferta'!M16 -> 15122812.5
I31: Check | J31: =J30-J27 -> -29087578.01
C33: Ingreso de oferta texto adicional: | D33: =+CONCATENATE("T",ROUND(J15/J27,2)*100,",","E",J29) -> T100,E0

Sheet III. Calculadora Fondeo USD
B2: Serie III (USD) - Calculadora Fondeo
B4: I. Instrumentos Elegibles y Montos
I6: Valor | J6: Valor
B7: Codigo Título | C7: Instrumentos | D7: Moneda del Intrumento | E7: Nominal | F7: Precio | G7: Cupón | H7: Devengado cupón corrido | I7: (moneda base) | J7: (USD)
B8: =+IFERROR(VLOOKUP(C8,'Títulos Elegibles'!$A$3:$B$9,2,FALSE),"") -> T | C8: FF CORPORACION VIAL DEL URUGUAY I USD | D8: =IFERROR(+VLOOKUP(C8,'Títulos Elegibles'!$A$3:$I$9,6,FALSE),"") -> USD | E8: 750000 | F8: =+IFERROR(VLOOKUP($C8,'Títulos Elegibles'!$A$3:$H$9,8,FALSE),"") -> 0.9593600922 | G8: =+IFERROR(VLOOKUP(C8,'Títulos Elegibles'!$A$3:$G$9,7,FALSE),"") -> 0.049 | H8: =+IFERROR(VLOOKUP(C8,'Títulos Elegibles'!$A$3:$I$9,9,FALSE),"") -> 0.001361111111 | I8: =IFERROR(E8*F8+H8*E8,0) -> 720540.9025 | J8: =+IFERROR(ROUND(IF(D8="UP",I8*$C$20/$C$18,IF(D8="UI",I8*$C$19/$C$18,I8)),2),"") -> 720540.9
B9: =+IFERROR(VLOOKUP(C9,'Títulos Elegibles'!$A$3:$B$9,2,FALSE),"") -> T | C9: FF CORPORACION VIAL DEL URUGUAY I US S4 | D9: =IFERROR(+VLOOKUP(C9,'Títulos Elegibles'!$A$3:$I$9,6,FALSE),"") -> USD | E9: 2000000 | F9: =+IFERROR(VLOOKUP($C9,'Títulos Elegibles'!$A$3:$H$9,8,FALSE),"") -> 0.959359917 | G9: =+IFERROR(VLOOKUP(C9,'Títulos Elegibles'!$A$3:$G$9,7,FALSE),"") -> 0.049 | H9: =+IFERROR(VLOOKUP(C9,'Títulos Elegibles'!$A$3:$I$9,9,FALSE),"") -> 0.001361111111 | I9: =IFERROR(E9*F9+H9*E9,0) -> 1921442.056 | J9: =+IFERROR(ROUND(IF(D9="UP",I9*$C$20/$C$18,IF(D9="UI",I9*$C$19/$C$18,I9)),2),"") -> 1921442.06
B10: =+IFERROR(VLOOKUP(C10,'Títulos Elegibles'!$A$3:$B$9,2,FALSE),"") -> T | C10: FF CORPORACION VIAL DEL URUGUAY I US S6 | D10: =IFERROR(+VLOOKUP(C10,'Títulos Elegibles'!$A$3:$I$9,6,FALSE),"") -> USD | F10: =+IFERROR(VLOOKUP($C10,'Títulos Elegibles'!$A$3:$H$9,8,FALSE),"") -> 0.9360274933 | G10: =+IFERROR(VLOOKUP(C10,'Títulos Elegibles'!$A$3:$G$9,7,FALSE),"") -> 0.045 | H10: =+IFERROR(VLOOKUP(C10,'Títulos Elegibles'!$A$3:$I$9,9,FALSE),"") -> 0.00125 | I10: 0 | J10: 0
B11: =+IFERROR(VLOOKUP(C11,'Títulos Elegibles'!$A$3:$B$9,2,FALSE),"") ->  | D11: =IFERROR(+VLOOKUP(C11,'Títulos Elegibles'!$A$3:$I$9,6,FALSE),"") ->  | F11: =+IFERROR(VLOOKUP($C11,'Títulos Elegibles'!$A$3:$H$9,8,FALSE),"") ->  | G11: =+IFERROR(VLOOKUP(C11,'Títulos Elegibles'!$A$3:$G$9,7,FALSE),"") ->  | H11: =+IFERROR(VLOOKUP(C11,'Títulos Elegibles'!$A$3:$I$9,9,FALSE),"") ->  | I11: 0 | J11: 0
B12: =+IFERROR(VLOOKUP(C12,'Títulos Elegibles'!$A$3:$B$9,2,FALSE),"") ->  | D12: =IFERROR(+VLOOKUP(C12,'Títulos Elegibles'!$A$3:$I$9,6,FALSE),"") ->  | F12: =+IFERROR(VLOOKUP($C12,'Títulos Elegibles'!$A$3:$H$9,8,FALSE),"") ->  | G12: =+IFERROR(VLOOKUP(C12,'Títulos Elegibles'!$A$3:$G$9,7,FALSE),"") ->  | H12: =+IFERROR(VLOOKUP(C12,'Títulos Elegibles'!$A$3:$I$9,9,FALSE),"") ->  | I12: 0 | J12: 0
B13: =+IFERROR(VLOOKUP(C13,'Títulos Elegibles'!$A$3:$B$9,2,FALSE),"") ->  | D13: =IFERROR(+VLOOKUP(C13,'Títulos Elegibles'!$A$3:$I$9,6,FALSE),"") ->  | F13: =+IFERROR(VLOOKUP($C13,'Títulos Elegibles'!$A$3:$H$9,8,FALSE),"") ->  | G13: =+IFERROR(VLOOKUP(C13,'Títulos Elegibles'!$A$3:$G$9,7,FALSE),"") ->  | H13: =+IFERROR(VLOOKUP(C13,'Títulos Elegibles'!$A$3:$I$9,9,FALSE),"") ->  | I13: 0 | J13: 0
B14: =+IFERROR(VLOOKUP(C14,'Títulos Elegibles'!$A$3:$B$9,2,FALSE),"") ->  | D14: =IFERROR(+VLOOKUP(C14,'Títulos Elegibles'!$A$3:$I$9,6,FALSE),"") ->  | F14: =+IFERROR(VLOOKUP($C14,'Títulos Elegibles'!$A$3:$H$9,8,FALSE),"") ->  | G14: =+IFERROR(VLOOKUP(C14,'Títulos Elegibles'!$A$3:$G$9,7,FALSE),"") ->  | H14: =+IFERROR(VLOOKUP(C14,'Títulos Elegibles'!$A$3:$I$9,9,FALSE),"") ->  | I14: 0 | J14: 0
C15: Total | J15: =SUM(J8:J14) -> 2641982.96 | K15: =+IF(I14>'I. Calculadora - Oferta'!M16,"SobreOfertado el monto",IF(I14<'I. Calculadora - Oferta'!M16,"Diferecia debe cubrirse con Efectivo","Caje total en Títulos")) -> Diferecia debe cubrirse con Efectivo
B17: Cotizaciones
B18: UYP/USD | C18: =+'I. Calculadora Fondeo UI'!C18 -> 39 | D18: valor de cierre del 15/4/2024
B19: UI | C19: =+'I. Calculadora Fondeo UI'!C19 -> 5.9991 | D19: Valor del 25/4/24 | J19: =+J27*0.98 -> 2589143.301
B20: UP | C20: =+'I. Calculadora Fondeo UI'!C20 -> 1.60197 | D20: Valor del 25/4/24 | J20: =+J27*0.02 -> 52839.6592
B24: II. Efectivo y Total Oferta | K24: Monto a transferir en Dólares
C26: Monto en efectivo (USD) | D26: =IF(J30-J15<0,0,J30-J15) -> 0 | J26: =D26 -> 0 | K26: =+J26 -> 0
H27: Total Oferta | J27: =J26+J15 -> 2641982.96
H28: % Efectivo | J28: =J26/J27 -> 0 | K28: =+IF(J28<10%,"Cumple","No cumple") -> Cumple
H29: % Efectivo (ROUND) | J29: =ROUND(J28*100,0) -> 0
H30: Monto a fondear ==========> | J30: =+'I. Calculadora - Oferta'!W16 -> 1020741.667
I31: Check | J31: =J30-J27 -> -1621241.293
C33: Ingreso de oferta texto adicional: | D33: =+CONCATENATE("T",ROUND(J15/J27,2)*100,",","E",J29) -> T100,E0

Sheet Títulos Elegibles
A2: NOMBRE ISIN | B2: Codigo Título | C2: ISIN | D2: Fecha de Emisión | E2: Último Pago de Cupón | F2: Moneda | G2: Cupón | H2: Precio* | I2: Devengado
A3: FF CORPORACION VIAL DEL URUGUAY I USD | B3: T | C3: UYFFRA083US1 | D3: 2017-04-26 | E3: 2024-04-15 | F3: USD | G3: 0.049 | H3: 0.9593600922 | I3: =+DAYS360(E3,"25/04/2024")/360*G3 -> 0.001361111111
A4: FF CORPORACION VIAL DEL URUGUAY I US S4 | B4: T | C4: UYFFCA101US8 | D4: 2018-04-30 | E4: 2024-04-15 | F4: USD | G4: 0.049 | H4: 0.959359917 | I4: =+DAYS360(E4,"25/04/2024")/360*G4 -> 0.001361111111
A5: FF CORPORACION VIAL DEL URUGUAY I US S6 | B5: T | C5: UYFFCN121US1 | D5: 2019-05-03 | E5: 2024-04-15 | F5: USD | G5: 0.045 | H5: 0.9360274933 | I5: 0.00125
A6: FF CORPORACION VIAL DEL URUGUAY I UI SI | B6: T | C6: UYFFCN150UI1 | D6: 2021-06-24 | E6: 2024-04-15 | F6: UI | G6: 0.0275 | H6: 0.987952405 | I6: 0.0007638888889
A7: FF CORPORACION VIAL DEL URUGUAY I UP SII | B7: T | C7: UYFFCN151UP4 | D7: 2021-06-24 | E7: 2024-04-15 | F7: UP | G7: 0.02 | H7: 1.011677434 | I7: 0.0005555555556
A8: FF CORPORACION VIAL DEL URUGUAY I US SIII | B8: T | C8: UYFFCN152US6 | D8: 2021-06-24 | E8: 2024-04-15 | F8: USD | G8: 0.031 | H8: 0.8948937688 | I8: 0.0008611111111
A9: Fideicomiso de Oferta Privada CVU II serie I | B9: T | C9: - | D9: 2023-07-20 | E9: 2024-04-01 | F9: UP | G9: 0.0227 | H9: 1.0098 | I9: 0.001513333333
H11: * precio fijado por el emisor, comunicado al mercado el 15/4/2024
A12: EFECTIVO | B12: E
